[Event "*** Titled Tuesday Blitz"]
[Site "Chess.com"]
[Date "2021.02.16"]
[Round "11"]
[White "IceBelka"]
[Black "muchojogo"]
[Result "1-0"]
[WhiteElo "2403"]
[BlackElo "2323"]
[TimeControl "180+1"]
[EndTime "12:09:41 PST"]
[Termination "IceBelka won by resignation"]

1. e4 {[%clk 0:03:00.3]} 1... c6 {[%clk 0:02:58.8]} 2. d4 {[%clk 0:02:59.6]}
2... d5 {[%clk 0:02:58.9]} 3. exd5 {[%clk 0:03:00.5]} 3... cxd5 {[%clk
0:02:58.3]} 4. c3 {[%clk 0:03:01]} 4... Nf6 {[%clk 0:02:57.6]} 5. Bf4 {[%clk
0:02:58.4]} 5... Nc6 {[%clk 0:02:57.9]} 6. h3 {[%clk 0:02:56]} 6... Bf5 {[%clk
0:02:48.9]} 7. Bd3 {[%clk 0:02:55.7]} 7... Bxd3 {[%clk 0:02:48.6]} 8. Qxd3
{[%clk 0:02:56.6]} 8... e6 {[%clk 0:02:49.4]} 9. Nf3 {[%clk 0:02:56.9]} 9... Bd6
{[%clk 0:02:50]} 10. Bxd6 {[%clk 0:02:57.4]} 10... Qxd6 {[%clk 0:02:50.9]} 11.
O-O {[%clk 0:02:57.7]} 11... O-O {[%clk 0:02:51.5]} 12. Nbd2 {[%clk 0:02:58.1]}
12... Rab8 {[%clk 0:02:51.5]} 13. a4 {[%clk 0:02:57.3]} 13... a6 {[%clk
0:02:51.2]} 14. Rfe1 {[%clk 0:02:53.9]} 14... b5 {[%clk 0:02:45.3]} 15. axb5
{[%clk 0:02:53.3]} 15... axb5 {[%clk 0:02:46.2]} 16. b4 {[%clk 0:02:53.2]} 16...
Nd7 {[%clk 0:02:32.2]} 17. Nb3 {[%clk 0:02:50.4]} 17... Nb6 {[%clk 0:02:32.2]}
18. Nc5 {[%clk 0:02:49.2]} 18... Nc4 {[%clk 0:02:32]} 19. Ra6 {[%clk 0:02:39.4]}
19... Ra8 {[%clk 0:02:31.5]} 20. Rea1 {[%clk 0:02:36.6]} 20... Rxa6 {[%clk
0:02:31.5]} 21. Rxa6 {[%clk 0:02:37.5]} 21... Qc7 {[%clk 0:02:32.3]} 22. Ng5
{[%clk 0:02:12.8]} 22... g6 {[%clk 0:02:29.1]} 23. h4 {[%clk 0:02:06.3]} 23...
Rc8 {[%clk 0:02:18.2]} 24. h5 {[%clk 0:02:04]} 24... Qf4 {[%clk 0:02:17.9]} 25.
Nh3 {[%clk 0:01:33.6]} 25... Qd2 {[%clk 0:02:11.4]} 26. Qxd2 {[%clk 0:01:28.4]}
26... Nxd2 {[%clk 0:02:12.3]} 27. h6 {[%clk 0:01:19]} 27... Ne4 {[%clk
0:01:57.7]} 28. Ra3 {[%clk 0:01:18.1]} 28... Nd6 {[%clk 0:01:55.2]} 29. Ng5
{[%clk 0:01:15.5]} 29... Nf5 {[%clk 0:01:54.1]} 30. Ra6 {[%clk 0:01:10.3]} 30...
Nxh6 {[%clk 0:01:53.1]} 31. Rb6 {[%clk 0:01:10.3]} 31... Ng4 {[%clk 0:01:49.5]}
32. Rxb5 {[%clk 0:01:02.4]} 32... Ra8 {[%clk 0:01:49.2]} 33. g3 {[%clk
0:01:02.4]} 33... h6 {[%clk 0:01:46.1]} 34. Nh3 {[%clk 0:01:00.4]} 34... Ra3
{[%clk 0:01:46.6]} 35. Rb6 {[%clk 0:00:51.3]} 35... Ne7 {[%clk 0:01:46.7]} 36.
Rb8+ {[%clk 0:00:47]} 36... Kg7 {[%clk 0:01:46.3]} 37. Rb7 {[%clk 0:00:47.4]}
37... Nf5 {[%clk 0:01:29.2]} 38. Nxe6+ {[%clk 0:00:44]} 38... Kg8 {[%clk
0:01:29.2]} 39. Rb8+ {[%clk 0:00:27.4]} 39... Kh7 {[%clk 0:01:28.2]} 40. Nef4
{[%clk 0:00:21.7]} 40... Rxc3 {[%clk 0:01:27.1]} 41. Nxd5 {[%clk 0:00:21.9]}
41... Rd3 {[%clk 0:01:27.2]} 42. Rb7 {[%clk 0:00:17.8]} 42... Kg8 {[%clk
0:01:23.8]} 43. Ne7+ {[%clk 0:00:16.3]} 43... Nxe7 {[%clk 0:01:23.3]} 44. Rxe7
{[%clk 0:00:17.2]} 44... Rxd4 {[%clk 0:01:24]} 45. b5 {[%clk 0:00:17.8]} 45...
Rb4 {[%clk 0:01:23.9]} 46. Rb7 {[%clk 0:00:17.6]} 46... Ne5 {[%clk 0:01:23.6]}
47. Nf4 {[%clk 0:00:16.4]} 47... Nc4 {[%clk 0:01:17.7]} 48. Nd5 {[%clk
0:00:16.1]} 48... Kg7 {[%clk 0:01:16]} 49. Nxb4 {[%clk 0:00:15.4]} 1-0

[Event "*** Titled Tuesday Blitz"]
[Site "Chess.com"]
[Date "2021.02.16"]
[Round "11"]
[White "kidagent"]
[Black "Eloist"]
[Result "1-0"]
[WhiteElo "2330"]
[BlackElo "2385"]
[TimeControl "180+1"]
[EndTime "12:09:41 PST"]
[Termination "kidagent won on time"]

1. e4 {[%clk 0:03:00.9]} 1... e6 {[%clk 0:03:00]} 2. d4 {[%clk 0:03:00.9]} 2...
d5 {[%clk 0:03:00.2]} 3. Nd2 {[%clk 0:03:01.6]} 3... Nf6 {[%clk 0:03:00.3]} 4.
e5 {[%clk 0:03:01.5]} 4... Nfd7 {[%clk 0:03:00.3]} 5. Bd3 {[%clk 0:03:01.6]}
5... c5 {[%clk 0:03:00.6]} 6. c3 {[%clk 0:03:02.1]} 6... b6 {[%clk 0:03:00.9]}
7. Ne2 {[%clk 0:03:01]} 7... Ba6 {[%clk 0:03:01.2]} 8. Bxa6 {[%clk 0:02:59.7]}
8... Nxa6 {[%clk 0:03:02.1]} 9. O-O {[%clk 0:02:59.7]} 9... b5 {[%clk
0:03:02.2]} 10. f4 {[%clk 0:02:55.4]} 10... Qb6 {[%clk 0:03:00.8]} 11. Kh1
{[%clk 0:02:54.1]} 11... g6 {[%clk 0:02:46.8]} 12. Nf3 {[%clk 0:02:53.4]} 12...
Be7 {[%clk 0:02:45.4]} 13. Be3 {[%clk 0:02:45.6]} 13... c4 {[%clk 0:02:44.8]}
14. a3 {[%clk 0:02:42.7]} 14... Nab8 {[%clk 0:02:32.6]} 15. b4 {[%clk
0:02:35.6]} 15... a5 {[%clk 0:02:22.5]} 16. Qd2 {[%clk 0:02:25.9]} 16... Nc6
{[%clk 0:02:20.8]} 17. g4 {[%clk 0:02:20]} 17... h5 {[%clk 0:02:20.1]} 18. g5
{[%clk 0:02:19]} 18... Kf8 {[%clk 0:02:13]} 19. h4 {[%clk 0:02:18]} 19... Kg7
{[%clk 0:02:12.6]} 20. Ng3 {[%clk 0:02:14.3]} 20... Ra6 {[%clk 0:02:10.4]} 21.
Rf2 {[%clk 0:02:03]} 21... axb4 {[%clk 0:02:07.9]} 22. cxb4 {[%clk 0:02:02.1]}
22... Bxb4 {[%clk 0:02:05.3]} 23. Qb2 {[%clk 0:01:58.1]} 23... Rha8 {[%clk
0:02:01.1]} 24. Rff1 {[%clk 0:01:55.2]} 24... Bxa3 {[%clk 0:01:56]} 25. Qb1
{[%clk 0:01:55.4]} 25... Bf8 {[%clk 0:01:50.3]} 26. Rxa6 {[%clk 0:01:54.7]}
26... Qxa6 {[%clk 0:01:47.6]} 27. f5 {[%clk 0:01:54.9]} 27... Qa2 {[%clk
0:01:30.7]} 28. Qxb5 {[%clk 0:01:50.8]} 28... Qa4 {[%clk 0:01:11.9]} 29. Qb1
{[%clk 0:01:35.9]} 29... Qb3 {[%clk 0:01:08.6]} 30. fxg6 {[%clk 0:01:22.5]}
30... fxg6 {[%clk 0:00:54.7]} 31. Qe1 {[%clk 0:01:13.3]} 31... Bb4 {[%clk
0:00:43.4]} 32. Qf2 {[%clk 0:01:12]} 32... Ra2 {[%clk 0:00:42.4]} 33. Nd2 {[%clk
0:01:11.4]} 33... Rxd2 {[%clk 0:00:22.2]} 34. Qf7+ {[%clk 0:01:03.9]} 34... Kh8
{[%clk 0:00:21.5]} 35. Nxh5 {[%clk 0:00:57.2]} 35... gxh5 {[%clk 0:00:16.9]} 36.
g6 {[%clk 0:00:55.1]} 1-0

[Event "*** Titled Tuesday Blitz"]
[Site "Chess.com"]
[Date "2021.02.16"]
[Round "11"]
[White "Guzman70"]
[Black "zurzan"]
[Result "1-0"]
[WhiteElo "2244"]
[BlackElo "2036"]
[TimeControl "180+1"]
[EndTime "12:09:41 PST"]
[Termination "Guzman70 won on time"]

1. d4 {[%clk 0:03:00.9]} 1... d6 {[%clk 0:02:59.4]} 2. e4 {[%clk 0:03:00]} 2...
Nf6 {[%clk 0:02:59.1]} 3. Nc3 {[%clk 0:03:00]} 3... Nbd7 {[%clk 0:02:59.2]} 4.
Nf3 {[%clk 0:02:58.6]} 4... e5 {[%clk 0:02:59.1]} 5. Bc4 {[%clk 0:02:57.7]} 5...
Be7 {[%clk 0:02:58.6]} 6. a4 {[%clk 0:02:56.9]} 6... c6 {[%clk 0:02:58]} 7. Ba2
{[%clk 0:02:56.3]} 7... h6 {[%clk 0:02:57.1]} 8. h3 {[%clk 0:02:55.1]} 8... Qc7
{[%clk 0:02:55.1]} 9. Be3 {[%clk 0:02:54.8]} 9... Nf8 {[%clk 0:02:38]} 10. a5
{[%clk 0:02:54.9]} 10... g5 {[%clk 0:02:29.3]} 11. a6 {[%clk 0:02:53.9]} 11...
b6 {[%clk 0:02:28.4]} 12. d5 {[%clk 0:02:54.1]} 12... c5 {[%clk 0:02:05.2]} 13.
Bc4 {[%clk 0:02:51.4]} 13... Bd7 {[%clk 0:01:50.7]} 14. Nb5 {[%clk 0:02:47.1]}
14... Bxb5 {[%clk 0:01:49.2]} 15. Bxb5+ {[%clk 0:02:46.3]} 15... N8d7 {[%clk
0:01:48.4]} 16. Nd2 {[%clk 0:02:44.1]} 16... Kf8 {[%clk 0:01:33.9]} 17. h4
{[%clk 0:02:41.1]} 17... g4 {[%clk 0:01:30.4]} 18. h5 {[%clk 0:02:40.2]} 18...
Kg7 {[%clk 0:01:22.4]} 19. f3 {[%clk 0:02:35]} 19... g3 {[%clk 0:01:15.7]} 20.
Rh3 {[%clk 0:02:33.1]} 20... Rag8 {[%clk 0:01:09]} 21. Rxg3+ {[%clk 0:02:31.4]}
21... Kh7 {[%clk 0:01:08.8]} 22. Rxg8 {[%clk 0:02:31.5]} 22... Rxg8 {[%clk
0:01:08.7]} 23. g4 {[%clk 0:02:32.4]} 23... Ne8 {[%clk 0:00:49]} 24. Qe2 {[%clk
0:02:30.4]} 24... Bh4+ {[%clk 0:00:48.2]} 25. Bf2 {[%clk 0:02:30.3]} 25... Bg5
{[%clk 0:00:43.9]} 26. O-O-O {[%clk 0:02:27.9]} 26... Ng7 {[%clk 0:00:30.5]} 27.
Kb1 {[%clk 0:02:27.1]} 27... Nb8 {[%clk 0:00:22.4]} 28. Nc4 {[%clk 0:02:24.8]}
28... Qe7 {[%clk 0:00:17.4]} 29. Rd3 {[%clk 0:02:19.8]} 29... f6 {[%clk
0:00:16.3]} 30. Ra3 {[%clk 0:02:19.3]} 30... Nd7 {[%clk 0:00:15.3]} 31. Qd3
{[%clk 0:02:10.1]} 31... Ne8 {[%clk 0:00:14.9]} 32. Qb3 {[%clk 0:02:09]} 32...
Nc7 {[%clk 0:00:14.8]} 33. Bc6 {[%clk 0:02:08]} 33... Nf8 {[%clk 0:00:13.7]} 34.
Nxb6 {[%clk 0:02:03]} 34... axb6 {[%clk 0:00:13.3]} 35. a7 {[%clk 0:02:00.9]}
35... Nd7 {[%clk 0:00:13.3]} 36. a8=Q {[%clk 0:01:54.3]} 36... Nxa8 {[%clk
0:00:13.4]} 37. Bxa8 {[%clk 0:01:52.5]} 37... b5 {[%clk 0:00:11.8]} 38. Qxb5
{[%clk 0:01:51.1]} 38... Rb8 {[%clk 0:00:10.8]} 39. Qc6 {[%clk 0:01:40.7]} 39...
Nb6 {[%clk 0:00:10.1]} 40. Bxc5 {[%clk 0:01:30.2]} 40... dxc5 {[%clk 0:00:08.3]}
41. d6 {[%clk 0:01:30.5]} 41... Qd8 {[%clk 0:00:07.3]} 42. Ra7+ {[%clk
0:01:29.5]} 42... Kg8 {[%clk 0:00:05.3]} 43. Qxc5 {[%clk 0:01:24.8]} 43... Nd7
{[%clk 0:00:04.5]} 44. Bd5+ {[%clk 0:01:22.4]} 44... Kh8 {[%clk 0:00:03.6]} 45.
Qc7 {[%clk 0:01:22.4]} 45... Qxc7 {[%clk 0:00:02.9]} 46. dxc7 {[%clk 0:01:21.6]}
46... Rc8 {[%clk 0:00:03.8]} 47. Be6 {[%clk 0:01:21.3]} 1-0

[Event "*** Titled Tuesday Blitz"]
[Site "Chess.com"]
[Date "2021.02.16"]
[Round "11"]
[White "Sokoloco"]
[Black "GMJustin"]
[Result "1-0"]
[WhiteElo "2466"]
[BlackElo "2332"]
[TimeControl "180+1"]
[EndTime "12:09:42 PST"]
[Termination "Sokoloco won on time"]

1. b3 {[%clk 0:03:00.9]} 1... d5 {[%clk 0:02:43.1]} 2. Bb2 {[%clk 0:03:01.1]}
2... Nf6 {[%clk 0:02:43.1]} 3. e3 {[%clk 0:03:01.6]} 3... g6 {[%clk 0:02:43.4]}
4. f4 {[%clk 0:03:01.4]} 4... Bg7 {[%clk 0:02:42.6]} 5. Nf3 {[%clk 0:03:02.1]}
5... O-O {[%clk 0:02:41.9]} 6. d4 {[%clk 0:02:52.1]} 6... Ne4 {[%clk 0:02:31.5]}
7. Bd3 {[%clk 0:02:52.2]} 7... c5 {[%clk 0:02:26.7]} 8. Nbd2 {[%clk 0:02:45.4]}
8... Nd6 {[%clk 0:02:21.7]} 9. O-O {[%clk 0:02:36]} 9... Bf5 {[%clk 0:02:00.7]}
10. Ne5 {[%clk 0:02:15.1]} 10... Bxd3 {[%clk 0:01:37.1]} 11. cxd3 {[%clk
0:02:14]} 11... cxd4 {[%clk 0:01:35.6]} 12. Bxd4 {[%clk 0:02:14.9]} 12... Nf5
{[%clk 0:01:30.7]} 13. Ndf3 {[%clk 0:02:05.7]} 13... Nxd4 {[%clk 0:01:14.4]} 14.
Nxd4 {[%clk 0:02:06.6]} 14... Nd7 {[%clk 0:01:06.6]} 15. Ndf3 {[%clk 0:01:59.6]}
15... Nxe5 {[%clk 0:01:02.5]} 16. fxe5 {[%clk 0:01:58.4]} 16... d4 {[%clk
0:00:52.1]} 17. exd4 {[%clk 0:01:56.5]} 17... Qd5 {[%clk 0:00:51.3]} 18. Qe2
{[%clk 0:01:56.4]} 18... f6 {[%clk 0:00:34.5]} 19. Rac1 {[%clk 0:01:56]} 19...
Rac8 {[%clk 0:00:25.2]} 20. Qe4 {[%clk 0:01:50.3]} 20... Qxe4 {[%clk 0:00:21.2]}
21. dxe4 {[%clk 0:01:51.2]} 21... fxe5 {[%clk 0:00:19.7]} 22. Nxe5 {[%clk
0:01:51.3]} 22... Bxe5 {[%clk 0:00:14.8]} 23. Rxf8+ {[%clk 0:01:47.9]} 23...
Rxf8 {[%clk 0:00:14.3]} 24. dxe5 {[%clk 0:01:48.4]} 24... Kf7 {[%clk 0:00:06.4]}
25. Rc7 {[%clk 0:01:23.2]} 25... Rb8 {[%clk 0:00:05.5]} 26. Kf2 {[%clk
0:01:23.5]} 26... Ke6 {[%clk 0:00:05.4]} 27. Ke3 {[%clk 0:01:24]} 27... a5
{[%clk 0:00:03.7]} 28. Kd4 {[%clk 0:01:15.3]} 28... b5 {[%clk 0:00:02.7]} 29.
Kc5 {[%clk 0:01:08.1]} 29... b4 {[%clk 0:00:03]} 30. Ra7 {[%clk 0:01:07.5]}
30... Rd8 {[%clk 0:00:02.9]} 31. Rxa5 {[%clk 0:01:03.9]} 31... Rd2 {[%clk
0:00:03.1]} 32. Kxb4 {[%clk 0:01:04.4]} 32... Rxg2 {[%clk 0:00:03.2]} 33. a4
{[%clk 0:01:05.1]} 33... Rxh2 {[%clk 0:00:02.1]} 34. Rc5 {[%clk 0:01:03]} 34...
h5 {[%clk 0:00:01.9]} 35. a5 {[%clk 0:01:02.9]} 35... Ra2 {[%clk 0:00:01.2]} 36.
Rc6+ {[%clk 0:00:59]} 36... Kxe5 {[%clk 0:00:01.3]} 37. Rxg6 {[%clk 0:00:58.9]}
37... Kxe4 {[%clk 0:00:01.2]} 38. Rh6 {[%clk 0:00:58.6]} 1-0

[Event "*** Titled Tuesday Blitz"]
[Site "Chess.com"]
[Date "2021.02.16"]
[Round "11"]
[White "Grineva_Marianna"]
[Black "Kostukov_Alex"]
[Result "0-1"]
[WhiteElo "2225"]
[BlackElo "2323"]
[TimeControl "180+1"]
[EndTime "12:09:45 PST"]
[Termination "Kostukov_Alex won by resignation"]

1. e4 {[%clk 0:03:00.9]} 1... c5 {[%clk 0:02:59.5]} 2. Nf3 {[%clk 0:03:01.1]}
2... g6 {[%clk 0:03:00]} 3. d4 {[%clk 0:03:01.5]} 3... cxd4 {[%clk 0:03:00.5]}
4. Nxd4 {[%clk 0:03:02.4]} 4... Bg7 {[%clk 0:03:00.9]} 5. c4 {[%clk 0:03:02.8]}
5... Nc6 {[%clk 0:03:01.1]} 6. Be3 {[%clk 0:03:02.4]} 6... Nf6 {[%clk
0:03:01.2]} 7. Nc3 {[%clk 0:03:02.9]} 7... Nxd4 {[%clk 0:03:00.3]} 8. Bxd4
{[%clk 0:03:01.2]} 8... Qa5 {[%clk 0:03:01.2]} 9. f3 {[%clk 0:02:54.9]} 9... O-O
{[%clk 0:03:00.7]} 10. Qd2 {[%clk 0:02:53.1]} 10... d6 {[%clk 0:03:00.5]} 11.
Be2 {[%clk 0:02:42.4]} 11... Be6 {[%clk 0:02:59.7]} 12. O-O {[%clk 0:02:40]}
12... Rfc8 {[%clk 0:02:59.6]} 13. b3 {[%clk 0:02:39.4]} 13... b5 {[%clk
0:02:59.7]} 14. cxb5 {[%clk 0:02:14.4]} 14... Nxe4 {[%clk 0:02:58.8]} 15. fxe4
{[%clk 0:02:04.4]} 15... Bxd4+ {[%clk 0:02:58.5]} 16. Qxd4 {[%clk 0:02:04.7]}
16... Qxc3 {[%clk 0:02:59.2]} 17. Qxc3 {[%clk 0:02:03.5]} 17... Rxc3 {[%clk
0:02:59.1]} 18. Rac1 {[%clk 0:02:03.8]} 18... Rac8 {[%clk 0:02:59.1]} 19. Bc4
{[%clk 0:01:55.5]} 19... Rxc1 {[%clk 0:02:58]} 20. Rxc1 {[%clk 0:01:54.4]} 20...
Kg7 {[%clk 0:02:57.8]} 21. Kf2 {[%clk 0:01:52.4]} 21... Kf6 {[%clk 0:02:57.9]}
22. Ke3 {[%clk 0:01:52.7]} 22... Ke5 {[%clk 0:02:58]} 23. Kd3 {[%clk 0:01:48.9]}
23... f5 {[%clk 0:02:55.2]} 24. Re1 {[%clk 0:01:45]} 24... Bxc4+ {[%clk
0:02:35.3]} 25. bxc4 {[%clk 0:01:43.5]} 25... f4 {[%clk 0:02:35.3]} 26. a4
{[%clk 0:01:39.5]} 26... g5 {[%clk 0:02:31.7]} 27. a5 {[%clk 0:01:37]} 27... g4
{[%clk 0:02:31.7]} 28. Rf1 {[%clk 0:01:33.3]} 28... h5 {[%clk 0:02:29.8]} 29. b6
{[%clk 0:01:12.3]} 29... axb6 {[%clk 0:02:29.1]} 30. axb6 {[%clk 0:01:13.2]}
30... e6 {[%clk 0:01:53.8]} 31. Rb1 {[%clk 0:01:03.1]} 31... Kf6 {[%clk
0:01:37.9]} 32. Kd4 {[%clk 0:00:55.9]} 32... Ke7 {[%clk 0:01:19.8]} 33. b7
{[%clk 0:00:40]} 33... e5+ {[%clk 0:01:19.8]} 34. Kd3 {[%clk 0:00:37.2]} 34...
Rb8 {[%clk 0:01:19.9]} 35. h3 {[%clk 0:00:32.5]} 35... Kd7 {[%clk 0:01:17.8]}
36. hxg4 {[%clk 0:00:31.3]} 36... hxg4 {[%clk 0:01:18]} 37. Rh1 {[%clk
0:00:30.2]} 37... Rxb7 {[%clk 0:01:13.9]} 38. g3 {[%clk 0:00:16.7]} 38... Rb3+
{[%clk 0:01:12.4]} 39. Ke2 {[%clk 0:00:16.9]} 39... Rxg3 {[%clk 0:01:12.3]} 40.
Rh7+ {[%clk 0:00:17.4]} 40... Kc6 {[%clk 0:01:12.3]} 41. Rg7 {[%clk 0:00:15.8]}
41... Re3+ {[%clk 0:01:11.7]} 42. Kf1 {[%clk 0:00:14.6]} 42... g3 {[%clk
0:01:11.3]} 43. Rg8 {[%clk 0:00:13.4]} 43... Rxe4 {[%clk 0:01:10.8]} 44. Rc8+
{[%clk 0:00:13.9]} 44... Kd7 {[%clk 0:01:11]} 45. Ra8 {[%clk 0:00:12.5]} 45...
Rxc4 {[%clk 0:01:10.8]} 46. Ra7+ {[%clk 0:00:13]} 46... Ke6 {[%clk 0:01:11.1]}
47. Kg2 {[%clk 0:00:13.5]} 47... Rc2+ {[%clk 0:01:09.9]} 48. Kf3 {[%clk
0:00:13.1]} 48... Rf2+ {[%clk 0:01:09.7]} 0-1

[Event "*** Titled Tuesday Blitz"]
[Site "Chess.com"]
[Date "2021.02.16"]
[Round "11"]
[White "Iskusnyh"]
[Black "attack2mateU"]
[Result "1-0"]
[WhiteElo "2619"]
[BlackElo "2722"]
[TimeControl "180+1"]
[EndTime "12:09:46 PST"]
[Termination "Iskusnyh won by resignation"]

1. d4 {[%clk 0:03:00.9]} 1... Nf6 {[%clk 0:03:00]} 2. c4 {[%clk 0:03:00.9]} 2...
g6 {[%clk 0:03:00.6]} 3. g3 {[%clk 0:03:01]} 3... Bg7 {[%clk 0:02:59.6]} 4. Bg2
{[%clk 0:03:01.5]} 4... d5 {[%clk 0:03:00.4]} 5. cxd5 {[%clk 0:03:01.3]} 5...
Nxd5 {[%clk 0:03:01.3]} 6. Nf3 {[%clk 0:03:01.5]} 6... Nb6 {[%clk 0:03:01.8]} 7.
O-O {[%clk 0:03:02]} 7... Nc6 {[%clk 0:03:01.6]} 8. e3 {[%clk 0:02:56.6]} 8...
e5 {[%clk 0:02:57.9]} 9. Nc3 {[%clk 0:02:55.8]} 9... exd4 {[%clk 0:02:54.5]} 10.
exd4 {[%clk 0:02:55.5]} 10... O-O {[%clk 0:02:55]} 11. Bg5 {[%clk 0:02:54.5]}
11... Qd6 {[%clk 0:02:51.4]} 12. Re1 {[%clk 0:02:41.2]} 12... Be6 {[%clk
0:02:34.4]} 13. Ne4 {[%clk 0:02:28.3]} 13... Qb4 {[%clk 0:02:30.2]} 14. Nc5
{[%clk 0:02:15.2]} 14... Nxd4 {[%clk 0:01:56.6]} 15. Nxd4 {[%clk 0:02:00.5]}
15... Bxd4 {[%clk 0:01:56.3]} 16. Nxe6 {[%clk 0:01:17.2]} 16... fxe6 {[%clk
0:01:56]} 17. Qe2 {[%clk 0:00:57.5]} 17... Bxf2+ {[%clk 0:01:21.8]} 18. Kh1
{[%clk 0:00:56.9]} 18... Bxe1 {[%clk 0:01:21.9]} 19. Qxe6+ {[%clk 0:00:56.4]}
19... Rf7 {[%clk 0:01:20.3]} 20. Rxe1 {[%clk 0:00:55.3]} 20... c6 {[%clk
0:01:06.5]} 21. Bh6 {[%clk 0:00:53.9]} 21... Nd5 {[%clk 0:00:39.9]} 22. a3
{[%clk 0:00:51.1]} 22... Qc5 {[%clk 0:00:13.8]} 23. b4 {[%clk 0:00:50.4]} 23...
Qf2 {[%clk 0:00:10.5]} 24. Rf1 {[%clk 0:00:46.7]} 24... Nc7 {[%clk 0:00:09]} 25.
Qc4 {[%clk 0:00:40.7]} 25... Qxf1+ {[%clk 0:00:03.6]} 26. Bxf1 {[%clk
0:00:39.5]} 26... b5 {[%clk 0:00:03.2]} 27. Qa2 {[%clk 0:00:35.7]} 27... Nd5
{[%clk 0:00:01.8]} 28. Bg2 {[%clk 0:00:35.1]} 28... Re8 {[%clk 0:00:01.5]} 29.
Bxd5 {[%clk 0:00:34.1]} 29... cxd5 {[%clk 0:00:02.2]} 30. Qxd5 {[%clk
0:00:33.7]} 1-0

[Event "*** Titled Tuesday Blitz"]
[Site "Chess.com"]
[Date "2021.02.16"]
[Round "11"]
[White "Klavdia_Nik"]
[Black "Trickster_Pony"]
[Result "1-0"]
[WhiteElo "2048"]
[BlackElo "1517"]
[TimeControl "180+1"]
[EndTime "12:09:46 PST"]
[Termination "Klavdia_Nik won on time"]

1. Nf3 {[%clk 0:03:00]} 1... c5 {[%clk 0:02:59.5]} 2. b3 {[%clk 0:02:51.9]} 2...
g6 {[%clk 0:02:55.3]} 3. Bb2 {[%clk 0:02:52]} 3... Nf6 {[%clk 0:02:54.8]} 4. c4
{[%clk 0:02:50.9]} 4... Bg7 {[%clk 0:02:53.8]} 5. g3 {[%clk 0:02:51]} 5... O-O
{[%clk 0:02:52.9]} 6. Bg2 {[%clk 0:02:51]} 6... Nc6 {[%clk 0:02:52]} 7. O-O
{[%clk 0:02:50.4]} 7... d5 {[%clk 0:02:42.4]} 8. d3 {[%clk 0:02:47.2]} 8... d4
{[%clk 0:02:40.1]} 9. Nbd2 {[%clk 0:02:45.7]} 9... e5 {[%clk 0:02:39.6]} 10. b4
{[%clk 0:02:45.5]} 10... cxb4 {[%clk 0:02:33.9]} 11. a3 {[%clk 0:02:44.9]} 11...
bxa3 {[%clk 0:02:11.4]} 12. Bxa3 {[%clk 0:02:43.4]} 12... Re8 {[%clk 0:02:12]}
13. Ng5 {[%clk 0:02:43.3]} 13... h6 {[%clk 0:02:01.3]} 14. Nge4 {[%clk
0:02:42.3]} 14... Nxe4 {[%clk 0:01:54.1]} 15. Nxe4 {[%clk 0:02:42]} 15... f5
{[%clk 0:01:32.6]} 16. Nd6 {[%clk 0:02:40.5]} 16... e4 {[%clk 0:01:20.7]} 17.
Nxe8 {[%clk 0:02:35.5]} 17... Qxe8 {[%clk 0:01:21.6]} 18. Qb3 {[%clk 0:02:29.4]}
18... b6 {[%clk 0:00:54.7]} 19. Bd6 {[%clk 0:02:09.7]} 19... Be6 {[%clk
0:00:36.6]} 20. Qb5 {[%clk 0:02:03.7]} 20... Bd7 {[%clk 0:00:29.3]} 21. Rfb1
{[%clk 0:01:50.8]} 21... Kh8 {[%clk 0:00:25.9]} 22. h4 {[%clk 0:01:46.4]} 22...
Ne5 {[%clk 0:00:19.8]} 23. Qb3 {[%clk 0:01:40.9]} 23... exd3 {[%clk 0:00:19.1]}
24. exd3 {[%clk 0:01:40.1]} 24... Bc6 {[%clk 0:00:15.9]} 25. Bxe5 {[%clk
0:01:35.3]} 25... Bxe5 {[%clk 0:00:13.6]} 26. Bxc6 {[%clk 0:01:28.8]} 26... Qxc6
{[%clk 0:00:13.4]} 27. Qb5 {[%clk 0:01:28.4]} 27... Qc5 {[%clk 0:00:12.3]} 28.
Qxc5 {[%clk 0:01:26.8]} 28... bxc5 {[%clk 0:00:12.3]} 29. Rb5 {[%clk 0:01:26.6]}
29... f4 {[%clk 0:00:12]} 30. Kg2 {[%clk 0:01:25.6]} 30... fxg3 {[%clk
0:00:11.9]} 31. fxg3 {[%clk 0:01:25.7]} 31... Bd6 {[%clk 0:00:08.9]} 32. Ra6
{[%clk 0:01:24.5]} 32... Bf8 {[%clk 0:00:06.5]} 33. Rxg6 {[%clk 0:01:23.9]}
33... Re8 {[%clk 0:00:05.3]} 34. Rb2 {[%clk 0:01:14.8]} 34... Re3 {[%clk
0:00:04.1]} 35. Rd2 {[%clk 0:01:14.3]} 35... Be7 {[%clk 0:00:02.5]} 36. Ra6
{[%clk 0:01:09.7]} 36... Kg7 {[%clk 0:00:01.9]} 37. Rxa7 {[%clk 0:01:09.3]}
37... Kf6 {[%clk 0:00:02.4]} 38. Ra6+ {[%clk 0:01:06.8]} 38... Kf5 {[%clk
0:00:02.1]} 39. Rf2+ {[%clk 0:01:03.7]} 39... Kg4 {[%clk 0:00:01.7]} 40. Rf4+
{[%clk 0:01:03.1]} 1-0